fUST/lending_fUST_20240103
["ID","MTS","AMOUNT","RATE_DAILY","PERIOD"]
[309975639,1704250673952,-9.54395781,0.00029789,2]
[309975640,1704250673979,-154.81422293,0.0002979,2]
[309975641,1704250688287,-203.19984112,0.0002979,2]
[309975642,1704250688365,-4.14693553,0.0002979,2]
[309975643,1704250747484,-535.07344683,0.0002979,2]
[309975644,1704250747634,-10.91986626,0.0002979,2]
[309975645,1704250829372,-980.0,0.00034,7]
[309975646,1704250829493,-20.0,0.00034,7]
[309975647,1704251077726,-154.81422293,0.00029788,2]
[309975648,1704251077755,-154.81422293,0.00029789,4]
[309975649,1704251077784,-24.85459485,0.0002979,2]
[309975650,1704251077998,-161.64040743,0.0002979,2]
[309975651,1704251133367,-433.14504265,0.00033999,4]
[309975652,1704251133397,-143.05503762,0.00034,4]
[309975653,1704251133500,-11.75918531,0.00034,4]
[309975659,1704251290951,-980.0,0.00034,7]
[309975660,1704251291217,-20.0,0.00034,7]
[309975661,1704251346102,-176.381144,0.0002979,2]
[309975684,1704251431961,-23.17246738,0.0002979,2]
[309975685,1704251431974,-1774.60609081,0.0003795,4]
[309975686,1704251431987,-1573.58742411,0.00037951,4]
[309975687,1704251431998,-154.81422293,0.00037952,5]
[309975688,1704251432009,-433.14504265,0.00037952,4]
[309975689,1704251432019,-486.5269242,0.00037996,5]
[309975690,1704251432029,-261.13517346,0.00038,4]
[309975691,1704251432039,-231.81194547,0.00038316,2]
[309975692,1704251432049,-313.0,0.00038386,2]
[309975693,1704251432059,-24900.0,0.00038386,2]
[309975694,1704251432068,-156.6269546,0.00038546,2]
[309975695,1704251432078,-249.661617,0.00038645,120]
[309975696,1704251432089,-545.317832,0.0003883,2]
[309975697,1704251432099,-1750.8497352,0.00038887,2]
[309975698,1704251432111,-150.81901718,0.00039876,30]
[309975699,1704251432121,-155.56878561,0.0004,4]
[309975700,1704251432132,-545.317832,0.00040267,2]
[309975701,1704251432141,-7539.00412724,0.00040408,4]
[309975702,1704251432151,-1010.89803546,0.00040408,2]
[309975703,1704251432161,-150.81901718,0.0004069,7]
[309975704,1704251432169,-150.0,0.00040986,2]
[309975705,1704251432180,-1000.0,0.00040999,7]
[309975706,1704251432189,-12588.21224231,0.00041,10]
[309975707,1704251432200,-150.81901718,0.0004152,4]
[309975708,1704251432210,-545.317832,0.00041704,2]
[309975709,1704251432222,-200.0,0.00041968,2]
[309975710,1704251432233,-200.0,0.00041978,2]
[309975711,1704251432244,-200.0,0.00041988,2]
[309975712,1704251432253,-6351.23991092,0.00042,5]
[309975713,1704251432263,-2190.10650715,0.00042,2]
[309975714,1704251432273,-300.0,0.00042223,30]
[309975715,1704251432284,-150.81901718,0.00042368,2]
[309975716,1704251432293,-14487.27,0.00042529,3]
[309975717,1704251432304,-6802.1,0.00042539,3]
[309975718,1704251432314,-9265.87828922,0.00042549,2]
[309975719,1704251432323,-235.45206444,0.00042688,2]
[309975720,1704251432333,-493.99111669,0.00042788,2]
[309975721,1704251432343,-545.317832,0.00043141,2]
[309975722,1704251432354,-153.0,0.0004411,2]
[309975723,1704251432365,-200.0,0.00044521,4]
[309975724,1704251432375,-545.317832,0.00044577,2]
[309975725,1704251432385,-320.57063591,0.00044768,7]
[309975726,1704251432395,-7019.8711888,0.000448,2]
[309975727,1704251432405,-2472.86386849,0.000448,30]
[309975766,1704251438055,-12072.73,0.00042519,3]
[309975767,1704251438065,-2300.63147692,0.000448,30]
[309975768,1704251438114,-1819.95666531,0.000448,30]
[309975769,1704251438123,-777.61585982,0.00044853,4]
[309975770,1704251438132,-245.9474749,0.00044853,2]
[309975771,1704251438232,-35.23242339,0.00044853,2]
[309975772,1704251438241,-239.0,0.0004487,60]
[309975773,1704251438251,-239.0,0.0004488,60]
[309975774,1704251438260,-7.76794131,0.00044886,7]
[309975775,1704251438272,-426.10000444,0.00044886,7]
[309975776,1704251438282,-5000.0,0.0004489,20]
[309975777,1704251438291,-340.69226294,0.0004489,4]
[309975778,1704251438301,-239.0,0.0004489,60]
[309975779,1704251438310,-151.0,0.0004489,2]
[309975780,1704251438319,-151.0,0.0004489,2]
[309975781,1704251438329,-163.278008,0.0004489,7]
[309975782,1704251438338,-163.278008,0.0004489,7]
[309975783,1704251438347,-1289.68222493,0.00044898,4]
[309975784,1704251438356,-260.23538509,0.00044898,4]
[309975785,1704251438366,-274.54200755,0.00044898,4]
[309975786,1704251438375,-1276.50396454,0.00044898,4]
[309975787,1704251438384,-1075.56933581,0.00044898,4]
[309975788,1704251438394,-2263.70040641,0.00044898,4]
[309975789,1704251438403,-155.39201092,0.00044898,4]
[309975790,1704251438413,-210.53392699,0.00044898,4]
[309975791,1704251438422,-468.64561615,0.00044898,2]
[309975792,1704251438431,-879.95831043,0.00044898,4]
[309975793,1704251438441,-2719.47337377,0.00044898,4]
[309975794,1704251438450,-2077.46901245,0.00044898,4]
[309975795,1704251438459,-243.14142942,0.00044898,7]
[309975796,1704251438469,-255.64776253,0.00044898,2]
[309975797,1704251438478,-155.4858064,0.00044898,4]
[309975798,1704251438488,-155.34306478,0.00044898,30]
[309975799,1704251438497,-1032.90485378,0.00044898,4]
[309975800,1704251438506,-175.43169557,0.00044898,2]
[309975801,1704251438516,-155.32699251,0.00044898,4]
[309975802,1704251438526,-155.86013939,0.00044898,4]
[309975803,1704251438535,-293.21551833,0.00044898,4]
[309975804,1704251438545,-1159.11136911,0.00044898,4]
[309975805,1704251438554,-180.57748244,0.00044898,2]
[309975806,1704251438564,-194.71254098,0.00044898,4]
[309975807,1704251438573,-3508.21102599,0.00044898,4]
[309975808,1704251438582,-710.87957776,0.00044898,4]
[309975809,1704251438592,-261.55068546,0.00044898,4]
[309975810,1704251438601,-2831.49064931,0.00044898,4]
[309975811,1704251438611,-272.92943641,0.00044898,4]
[309975812,1704251438620,-242.96143164,0.00044898,30]
[309975813,1704251438630,-1833.77734134,0.00044898,2]
[309975814,1704251438640,-782.95690228,0.00044898,4]
[309975815,1704251438649,-859.12199319,0.00044898,4]
[309975816,1704251438658,-527.18167335,0.00044898,4]
[309975817,1704251438667,-706.41600495,0.00044898,20]
[309975818,1704251438676,-264.25564285,0.00044898,2]
[309975819,1704251438686,-329.64025571,0.00044898,4]
[309975820,1704251438694,-1825.79583182,0.00044898,30]
[309975821,1704251438704,-151.0,0.00044898,2]
[309975822,1704251438714,-151.0,0.00044898,2]
[309975823,1704251438723,-292.351253,0.00044898,7]
[309975824,1704251438732,-292.351253,0.00044898,7]
[309975825,1704251438742,-292.351253,0.00044898,7]
[309975826,1704251438753,-292.351253,0.00044898,7]
[309975827,1704251438762,-163.278008,0.00044898,7]
[309975828,1704251438773,-163.278008,0.00044898,7]
[309975829,1704251438784,-163.278008,0.00044899,7]
[309975830,1704251438793,-163.278008,0.00044899,7]
[309975831,1704251438802,-684.52414166,0.00044899,5]
[309975832,1704251438811,-535.25292082,0.00044899,4]
[309975833,1704251438820,-379.86478542,0.00044899,4]
[309975834,1704251438830,-2372.37368066,0.00044899,14]
[309975835,1704251438839,-485.70184632,0.00044899,2]
[309975836,1704251438848,-13245.43134465,0.000449,6]
[309975837,1704251438861,-527.12954456,0.000449,6]
[309975839,1704251441120,-3057.64119675,0.000449,6]
[309975849,1704252341113,-154.81422293,0.00039297,5]
[309975850,1704252341136,-1000.0,0.00039298,7]
[309975851,1704252341157,-433.14504265,0.00039299,4]
[309975852,1704252341177,-78.87165767,0.00039299,4]
[309975853,1704252433119,-154.81422293,0.00039534,5]
[309975854,1704252433151,-1774.60609081,0.00039535,4]
[309975855,1704252433181,-437.6574014,0.00039536,2]
[309975856,1704252433207,-5246.86679064,0.00039568,4]
[309975857,1704252433236,-929.717498,0.00039569,2]
[309975858,1704252433266,-272.561493,0.00039762,2]
[309975859,1704252433294,-321.9013706,0.00039845,2]
[309975860,1704252433322,-228.29394956,0.00039978,120]
[309975878,1704252632121,-1000.0,0.00039249,7]
[309975879,1704252632131,-167.421024,0.0003925,2]
[309975880,1704252632141,-1166.94091972,0.00039973,4]
[309975890,1704252638284,-154.81422293,0.00039248,5]
[309975891,1704252638294,-607.66517109,0.00039973,4]
[309975892,1704252638304,-433.14504265,0.00039974,4]
[309975893,1704252638313,-897.70442484,0.00039978,120]
[309975894,1704252638323,-187.246212,0.00040026,120]
[309975895,1704252638332,-150.0,0.00040822,2]
[309975896,1704252638342,-176.381144,0.00040823,2]
[309975897,1704252638351,-5647.74175239,0.00040978,2]
[309975898,1704252638363,-2367.29936599,0.00040978,2]
[309975899,1704252638375,-521.0003647,0.00040978,2]
[309975900,1704252638386,-16363.95851692,0.00040978,2]
[309975901,1704252638409,-929.717498,0.00041033,2]
[309975902,1704252638422,-548.39967405,0.00041229,4]
[309975903,1704252638432,-929.717498,0.00042497,2]
[309975904,1704252638443,-4584.71,0.000425,15]
[309975905,1704252638453,-383.90875798,0.00042799,2]
[309975906,1704252638463,-195.0,0.00043,90]
[309975907,1704252638472,-724.4305136,0.00043787,30]
[309975908,1704252638483,-929.717498,0.00043962,2]
[309975909,1704252638493,-306.9157721,0.00044192,2]
[309975910,1704252638502,-200.0,0.00044384,4]
[309975911,1704252638512,-220.41021947,0.00044641,5]
[309975912,1704252638521,-433.98160686,0.00044689,7]
[309975913,1704252638531,-10123.03297178,0.000448,2]
[309975914,1704252638541,-14429.49765254,0.000448,120]
[309975915,1704252638551,-228.088,0.00044807,2]
[309975916,1704252638561,-152.47630933,0.0004481,6]
[309975917,1704252638570,-6843.68424062,0.00044868,3]
[309975918,1704252638584,-527.12954456,0.00044868,3]
[309975953,1704252641319,-1307.40621482,0.00044868,3]
[309975954,1704252641330,-239.0,0.0004487,60]
[309975955,1704252641339,-3272.08212717,0.00044878,3]
[309975956,1704252641352,-4948.70080302,0.00044878,3]
[309975957,1704252641364,-469.45799078,0.00044878,3]
[309975958,1704252641378,-1723.61907903,0.00044878,3]
[309975959,1704252641387,-239.0,0.0004488,60]
[309975960,1704252641400,-1641.09610456,0.00044888,3]
[309975974,1704252643152,-3359.12634566,0.00044888,3]
[309976211,1704253748092,-5000.0,0.00034,5]
[309976212,1704253748217,-5000.0,0.00034,5]
[309976213,1704253748403,-4021.70779397,0.00034,5]
[309976214,1704253769139,-154.81422293,0.00034998,5]
[309976215,1704253769160,-433.14504265,0.00034999,4]
[309976216,1704253769180,-437.40188062,0.00034999,7]
[309976265,1704253832272,-1000.0,0.00038456,7]
[309976267,1704253832281,-227.190769,0.00038457,2]
[309976269,1704253832291,-187.246212,0.00038568,120]
[309976271,1704253832301,-853.80645522,0.000386,4]
[309976273,1704253832310,-743.773999,0.0003989,2]
[309976275,1704253832319,-150.0,0.00040384,2]
[309976277,1704253832328,-240.2236437,0.00040408,4]
[309976279,1704253832338,-7577.00785969,0.00040408,4]
[309976281,1704253832347,-154.81422293,0.00040408,8]
[309976283,1704253832356,-1488.5541722,0.00041096,15]
[309976285,1704253832366,-169.69161421,0.00041188,10]
[309976287,1704253832375,-21257.7962378,0.00041288,2]
[309976289,1704253832384,-743.773999,0.00041366,2]
[309976292,1704253832393,-383.90875798,0.00042778,2]
[309976295,1704253832402,-743.773999,0.00042842,2]
[309976298,1704253832412,-195.0,0.00043,90]
[309976301,1704253832421,-166.52,0.000439,120]
[309976304,1704253832430,-200.0,0.00043918,4]
[309976307,1704253832439,-743.773999,0.00044318,2]
[309976310,1704253832448,-300.0,0.00044448,30]
[309976313,1704253832457,-433.98160686,0.00044656,7]
[309976316,1704253832466,-228.088,0.00044685,2]
[309976319,1704253832475,-150.162,0.00044685,2]
[309976322,1704253832484,-152.47630933,0.00044798,6]
[309976325,1704253832493,-3850.80132031,0.000448,110]
[309976328,1704253832504,-10123.03297178,0.000448,2]
[309976331,1704253832513,-14429.49765254,0.000448,120]
[309976334,1704253832522,-153.0,0.00044841,2]
[309976337,1704253832531,-153.0,0.00044841,2]
[309976339,1704253832541,-153.0,0.00044841,2]
[309976341,1704253832551,-154.0222339,0.00044841,2]
[309976343,1704253832560,-153.0,0.00044841,2]
[309976345,1704253832570,-153.9431941,0.00044841,2]
[309976347,1704253832579,-153.0,0.00044841,2]
[309976349,1704253832588,-7802.99,0.00044858,3]
[309976351,1704253832597,-9363.58,0.00044868,3]
[309976353,1704253832607,-191.0,0.0004487,60]
[309976355,1704253832616,-5070.87,0.00044878,3]
[309976356,1704253832625,-191.0,0.0004488,60]
[309976358,1704253832634,-163.278008,0.00044888,7]
[309976360,1704253832644,-163.278008,0.00044888,7]
[309976362,1704253832653,-5000.0,0.00044888,20]
[309976364,1704253832662,-156.20977532,0.00044888,4]
[309976366,1704253832672,-1368.0160483,0.00044888,60]
[309976368,1704253832681,-191.0,0.0004489,60]
[309976370,1704253832690,-1000.64507919,0.00044897,2]
[309976372,1704253832699,-213.44194509,0.00044898,4]
[309976374,1704253832708,-335.75557436,0.00044898,4]
[309976376,1704253832717,-684.52414166,0.00044898,5]
[309976378,1704253832726,-535.25292082,0.00044898,4]
[309976380,1704253832735,-2372.37368066,0.00044898,14]
[309976382,1704253832744,-379.86478542,0.00044898,4]
[309976384,1704253832755,-782.95690228,0.00044898,4]
[309976386,1704253832764,-706.41600495,0.00044898,20]
[309976388,1704253832773,-859.12199319,0.00044898,4]
[309976398,1704253832873,-272.92943641,0.00044898,4]
[309976400,1704253832885,-329.64025571,0.00044898,4]
[309976402,1704253832897,-1825.79583182,0.00044898,30]
[309976404,1704253832907,-1833.77734134,0.00044898,2]
[309976406,1704253832916,-242.96143164,0.00044898,30]
[309976408,1704253832924,-527.18167335,0.00044898,4]
[309976410,1704253832934,-264.25564285,0.00044898,2]
[309976411,1704253832944,-2754.10924848,0.00044898,4]
[309976952,1704253838567,-521.0003647,0.00035616,2]
[309976954,1704253838579,-727.8832013,0.00035616,2]
[309976956,1704253838588,-6502.49,0.00044889,3]
[309976958,1704253838598,-77.38140083,0.00044898,4]
[309976960,1704253838607,-261.55068546,0.00044898,4]
[309976962,1704253838616,-710.87957776,0.00044898,4]
[309976964,1704253838626,-274.54200755,0.00044898,4]
[309976966,1704253838636,-155.34306478,0.00044898,30]
[309976968,1704253838645,-255.64776253,0.00044898,2]
[309976970,1704253838654,-260.23538509,0.00044898,4]
[309976972,1704253838664,-293.21551833,0.00044898,4]
[309976974,1704253838673,-2263.70040641,0.00044898,4]
[309976977,1704253838682,-1289.68222493,0.00044898,4]
[309976980,1704253838691,-175.43169557,0.00044898,2]
[309976983,1704253838701,-879.95831043,0.00044898,4]
[309976985,1704253838710,-1159.11136911,0.00044898,4]
[309976987,1704253838719,-3508.21102599,0.00044898,4]
[309976989,1704253838728,-155.32699251,0.00044898,4]
[309976991,1704253838737,-1075.56933581,0.00044898,4]
[309976993,1704253838746,-2719.47337377,0.00044898,4]
[309976995,1704253838755,-468.64561615,0.00044898,2]
[309976997,1704253838765,-2077.46901245,0.00044898,4]
[309976999,1704253838774,-155.4858064,0.00044898,4]
[309977001,1704253838782,-180.57748244,0.00044898,2]
[309977003,1704253838795,-155.39201092,0.00044898,4]
[309977005,1704253838803,-1032.90485378,0.00044898,4]
[309977007,1704253838813,-210.53392699,0.00044898,4]
[309977009,1704253838822,-243.14142942,0.00044898,7]
[309977011,1704253838832,-155.86013939,0.00044898,4]
[309977013,1704253838841,-194.71254098,0.00044898,4]
[309977015,1704253838850,-1666.83092325,0.00044898,4]
[309977017,1704253838860,-12000.0,0.00044898,4]
[309977019,1704253838869,-607.80672534,0.00044898,4]
[309977021,1704253838879,-548.39967405,0.00044898,4]
[309977023,1704253838888,-1224.58434987,0.00044898,14]
[309977025,1704253838898,-311.2913057,0.00044898,4]
[309977027,1704253838907,-274.14517311,0.00044898,4]
[309977029,1704253838916,-495.02290589,0.00044898,4]
[309977031,1704253838925,-292.351253,0.00044898,7]
[309977033,1704253838935,-292.351253,0.00044898,7]
[309977035,1704253838945,-292.351253,0.00044898,7]
[309977036,1704253838954,-292.351253,0.00044898,7]
[309977038,1704253838964,-163.278008,0.00044898,7]
[309977040,1704253838973,-163.278008,0.00044898,7]
[309977042,1704253838982,-163.278008,0.00044898,7]
[309977044,1704253838991,-163.278008,0.00044898,7]
[309977046,1704253839001,-292.351253,0.00044899,7]
[309977048,1704253839010,-292.351253,0.00044899,7]
[309977050,1704253839021,-292.351253,0.00044899,7]
[309977052,1704253839029,-292.351253,0.00044899,7]
[309977054,1704253839039,-292.351253,0.00044899,7]
[309977056,1704253839048,-292.351253,0.00044899,7]
[309977058,1704253839059,-163.278008,0.00044899,7]
[309977060,1704253839068,-163.278008,0.00044899,7]
[309977062,1704253839077,-163.278008,0.00044899,7]
[309977064,1704253839087,-163.278008,0.00044899,7]
[309977066,1704253839096,-163.278008,0.00044899,7]
[309977068,1704253839106,-163.278008,0.00044899,7]
[309977070,1704253839115,-2401.10876231,0.00044899,4]
[309977072,1704253839124,-6821.80814265,0.00044899,4]
[309977075,1704253839138,-527.12954456,0.00044899,4]
[309977268,1704253841524,-21902.94515686,0.00044899,4]
[309977270,1704253841533,-26965.31733102,0.00044899,30]
[309977272,1704253841543,-485.70184632,0.00044899,2]
[309977274,1704253841552,-5364.86736667,0.000449,6]
[309977621,1704253913895,-154.81422293,0.00041416,8]
[309977622,1704253913925,-1797.3,0.0004425,4]
[309977623,1704253913956,-1000.0,0.00044889,7]
[309977624,1704253913986,-2868.08,0.0004489,3]
[309977625,1704253914015,-5381.15,0.0004489,3]
[309977626,1704253914045,-4484.29,0.0004489,3]
[309977627,1704253914075,-2401.10876231,0.00044898,4]
[309977628,1704253914107,-607.80672534,0.00044898,4]
[309977629,1704253914137,-274.14517349,0.00044898,4]
[309977630,1704253914167,-1276.50396454,0.00044898,4]
[309977631,1704253914198,-548.39967405,0.00044898,4]
[309977632,1704253914324,-194.71254098,0.00044898,4]
[309977633,1704253914355,-1224.58434987,0.00044898,14]
[309977634,1704253914383,-1032.90485378,0.00044898,4]
[309977635,1704253914412,-311.2913057,0.00044898,4]
[309977636,1704253914441,-210.53392699,0.00044898,4]
[309977637,1704253914469,-155.39201092,0.00044898,4]
[309977638,1704253914498,-243.14142942,0.00044898,7]
[309977639,1704253914526,-1666.83092325,0.00044898,4]
[309977640,1704253914555,-155.4858064,0.00044898,4]
[309977641,1704253914584,-2077.46901245,0.00044898,4]
[309977642,1704253914613,-12000.0,0.00044898,4]
[309977643,1704253914641,-155.86013939,0.00044898,4]
[309977644,1704253914670,-7348.93768721,0.00044899,4]
[309977645,1704253914698,-236078.28074284,0.000449,6]
[309977646,1704253924953,-495.02290589,0.00044249,4]
[309977647,1704253924983,-15329.73038315,0.000449,6]
[309977648,1704253925012,-18945.55899172,0.000449,4]
[309977649,1704253925042,-155.74670976,0.000449,4]
[309977650,1704253925073,-155.19599509,0.000449,4]
[309977651,1704253925104,-247.23933276,0.000449,4]
[309977652,1704253925134,-2903.6629566,0.000449,6]
[309977653,1704253925164,-7215.82199052,0.000449,120]
[309977654,1704253925194,-340.69226294,0.000449,4]
[309977655,1704253925223,-304.57684248,0.000449,7]
[309977656,1704253925253,-150.0,0.000449,35]
[309977657,1704253925283,-292.351253,0.000449,7]
[309977658,1704253925312,-292.351253,0.000449,7]
[309977659,1704253925343,-292.351253,0.000449,7]
[309977660,1704253925374,-292.351253,0.000449,7]
[309977661,1704253925406,-163.278008,0.000449,7]
[309977662,1704253925436,-163.278008,0.000449,7]
[309977663,1704253925466,-163.278008,0.000449,7]
[309977664,1704253925495,-163.278008,0.000449,7]
[309977665,1704253925524,-4584.71035544,0.000449,20]
[309977666,1704253925553,-150.0,0.0004497,60]
[309977667,1704253925582,-150.0,0.0004498,60]
[309977668,1704253925612,-3736.91,0.0004499,3]
[309977669,1704253925641,-150.0,0.0004499,60]
[309977670,1704253925671,-11977.99251921,0.00044999,30]
[309977671,1704253925702,-1227.60915988,0.00045,7]
[309977672,1704253925731,-391.33326299,0.00045,10]
[309977673,1704253925761,-2996.02806935,0.00045,30]
[309977674,1704253925791,-1507.859588,0.00045,3]
[309977675,1704253925822,-292.351253,0.00045,7]
[309977676,1704253925852,-292.351253,0.00045,7]
[309977677,1704253925967,-163.278008,0.00045,7]
[309977678,1704253926001,-163.278008,0.00045,7]
[309977679,1704253931789,-4849.43557037,0.00041416,120]
[309977681,1704254066715,-5000.0,0.0003,3]
[309977682,1704254066784,-5000.0,0.0003,3]
[309977683,1704254066985,-5000.0,0.0003,3]
[309977684,1704254067081,-138.99125003,0.0003,3]
[309977685,1704254214532,-5000.0,0.0003,4]
[309977686,1704254214636,-5000.0,0.0003,4]
[309977687,1704254214795,-5000.0,0.0003,4]
[309977688,1704254214861,-5000.0,0.0003,4]
[309977689,1704254215070,-1245.63811387,0.0003,4]
[309977690,1704254215098,-707.13398357,0.0003,4]
[309977691,1704254216589,2042.65864916,0.0003,4]
[309977692,1704254225379,-391.76187128,0.0003,4]
[309977693,1704254225495,-7.99514023,0.0003,4]
[309977694,1704254229092,-2745.58640564,0.0003,4]
[309977695,1704254229282,-56.03237562,0.0003,4]
[309977696,1704254233695,-820.42810714,0.0003,4]
[309977697,1704254233990,-16.74343076,0.0003,4]
[309977699,1704254847012,-154.76784823,0.00029999,4]
[309977700,1704254847042,-169.75816416,0.0003,4]
[309977701,1704254847084,-6.62297984,0.0003,4]
[309977702,1704254905052,-852.65941732,0.0003,2]
[309977703,1704254905172,-17.4012126,0.0003,2]
[309977704,1704254952105,-154.76784823,0.00034539,4]
[309977705,1704254952128,-1000.0,0.0003454,7]
[309977706,1704254952245,-1198.2,0.00034541,4]
[309977707,1704254952270,-20317.12215177,0.00034542,2]
[309977708,1704254969102,-4582.87784823,0.00034542,2]
[309977709,1704254969123,-377.183663,0.00034559,2]
[309977710,1704254969145,-1521.92974817,0.00034978,4]
[309977711,1704254969165,-7484.38204221,0.00035,3]
[309977712,1704254969185,-227.190769,0.00035289,2]
[309977713,1704254969206,-194.741701,0.00035616,120]
[309977714,1704254969226,-377.183663,0.00035838,2]
[309977715,1704254969246,-7062.174359,0.00036,3]
[309977716,1704254969265,-2348.4939649,0.00036487,2]
[309977717,1704254969286,-320.87869148,0.00037116,2]
[309977777,1704255038661,-56.30497152,0.00037116,2]
[309977778,1704255038670,-154.76784823,0.00038394,5]
[309977780,1704255038679,-309.92754495,0.00038395,2]
[309977782,1704255038690,-67.25611805,0.00038395,2]
[309977784,1704255038699,-250.0,0.00038499,30]
[309977786,1704255038708,-581.64117939,0.00038546,2]
[309977788,1704255038717,-1681.62307549,0.00038546,2]
[309977790,1704255038726,-377.183663,0.00039674,2]
[309977792,1704255038735,-169.60870241,0.000399,9]
[309977794,1704255038752,-41578.191331,0.0004,9]
[309977797,1704255038763,-1610.41160478,0.0004,4]
[309977799,1704255038773,-305.93917199,0.000428,2]
[309977801,1704255038782,-998.5,0.00043889,4]
[309977803,1704255038791,-150.0,0.0004389,2]
[309977805,1704255038801,-1000.0,0.00044013,7]
[309977807,1704255038810,-282.40467581,0.00044014,8]
[309977808,1704255038820,-201.71762558,0.00044059,2]
[309977811,1704255038831,-194.741701,0.00044521,120]
[309977813,1704255038840,-282.40467581,0.00044894,8]
[309977815,1704255038850,-180.57748244,0.00044898,2]
[309977817,1704255038859,-468.64561615,0.00044899,2]
[309977818,1704255038869,-8146.80010635,0.000449,6]
[309977821,1704255038882,-527.12954456,0.000449,6]
[309978120,1704255042016,-5098.6312383,0.000449,6]
[309978122,1704255042026,-243.66147399,0.00044931,7]
[309978124,1704255042037,-306.0,0.00044932,2]
[309978126,1704255042047,-201.71762558,0.0004494,2]
[309978128,1704255042056,-4197.84,0.00044989,3]
[309978130,1704255042066,-3498.2,0.00044989,3]
[309978132,1704255042075,-17068.2628,0.00044999,4]
[309978134,1704255042085,-9796.72976905,0.00045,2]
[309978136,1704255042096,-2500.0,0.00045,2]
[309978138,1704255042108,-538.1465947,0.00045205,27]
[309978140,1704255042119,-2525.84,0.00045443,4]
[309978142,1704255042128,-1576.85624664,0.00045753,21]
[309978261,1704255043504,-1015.66375336,0.00045753,21]
[309978263,1704255043513,-2592.52,0.00045753,21]
[309978265,1704255043523,-177.07109179,0.00045753,21]
[309979265,1704255394703,-239.76924444,0.00037104,5]
[309979266,1704255394735,-2117.74659289,0.00037104,4]
[309979267,1704255394765,-998.5,0.00037105,4]
[309979268,1704255394796,-310.25974859,0.00037105,2]
[309979269,1704255394827,-1000.0,0.00037106,7]
[309979270,1704255394946,-5436.08812367,0.00037106,4]
[309979271,1704255399472,-154.76784823,0.00037103,5]
[309979272,1704255399503,-2833.37364641,0.00037106,4]
[309979273,1704255399532,-615.76189004,0.00037116,4]
[309979274,1704255399562,-715.73849101,0.0004,4]
[309979275,1704255400076,4123.98513762,0.00037105,2]
[309979279,1704255936094,-793.40016296,0.00034333,4]
[309979280,1704255936113,-1049.81190429,0.00034333,2]
[309979282,1704255951156,217.536984,0.00033808,120]
[309979283,1704255951633,-5000.0,0.00033808,120]
[309979284,1704255951732,-4782.463016,0.00033808,120]
[309979285,1704256018181,-555.57440302,0.00033319,2]
[309979286,1704256018216,-184.88851194,0.0003332,2]
[309979287,1704256018471,-15.11148806,0.0003332,2]
[309979288,1704256023791,-1150.42869216,0.00033318,4]
[309979289,1704256023987,-23.47813657,0.00033318,4]
[309979290,1704256036211,-154.76784823,0.00033317,5]
[309979291,1704256036240,-135.09791194,0.00033318,2]
[309979292,1704256036484,-19.66993629,0.00033318,2]
[309979293,1704256036512,-270.19582388,0.00033975,2]
[309979294,1704256042103,-25.58556405,0.00033975,2]
[309979295,1704256042128,-698.95,0.00034308,4]
[309979296,1704256042151,-154.76784823,0.00034308,2]
[309979297,1704256042173,-8487.11540466,0.00034308,2]
[309979298,1704256055299,-980.0,0.00034,7]
[309979299,1704256055640,-20.0,0.00034,7]
[309979300,1704256060997,-951.13815619,0.00030885,4]
[309979301,1704256061025,-132.64972814,0.00030886,5]
[309979302,1704256061122,-22.11812009,0.00030886,5]
[309979303,1704256061150,-154.76784823,0.00033974,4]
[309979304,1704256112209,-424.4821418,0.00030885,4]
[309979305,1704256112445,-8.66290085,0.00030885,4]
[309979306,1704256134465,-154.76784823,0.00030886,5]
[309979307,1704256134492,-166.98988,0.00032717,2]
[309979308,1704256134521,-157.35569736,0.00033274,2]
[309979309,1704256134650,-164.54567324,0.00033274,2]
[309979310,1704256156106,-154.76784823,0.00030866,5]
[309979311,1704256156126,-166.2793413,0.00030885,2]
[309979312,1704256156145,-7987.1129013,0.00034206,4]
[309979313,1704256156167,-1000.0,0.00034207,7]